[Event "Swiss Championship 2024"]
[Site "Flims"]
[Date "2024.07.21"]
[Round "9.3"]
[White "Georgiadis, Nico"]
[Black "Wyss, Jonas"]
[Result "0-1"]
[ECO "C18"]
[WhiteElo "2512"]
[BlackElo "2291"]
[Annotator "RC"]
[PlyCount "74"]
[EventDate "2024.07.10"]
[EventType "tourn"]
[EventCountry "SUI"]
[SourceTitle "playchess.com"]
[Source "ChessBase"]
[SourceQuality "1"]
[TimeControl "40/5400+30:1800+30"]

1. e4 {[%emt 0:00:04]} e6 {[%emt 0:00:16]} 2. d4 {[%emt 0:00:07]} d5 {[%emt 0:00:08]} 3. Nc3 {[%emt 0:00:05]} Bb4 {[%emt 0:00:09]} 4. e5 {[%emt 0:00:08]} c5 {[%emt 0:00:07]} 5. a3 {[%emt 0:00:06]} Bxc3+ {[%emt 0:00:08]} 6. bxc3 {[%emt 0:00:05]} Ne7 {[%emt 0:00:09]} 7. Qg4 {[%emt 0:00:13]} O-O {[%emt 0:00:19]} 8. Bd3 {[%emt 0:00:52]} f5 {[%emt 0:00:11]} 9. exf6 {[%emt 0:00:16]} Rxf6 {[%emt 0:00:12]} 10. Bg5 {[%emt 0:00:42]} Rf7 {[%emt 0:00:11]} 11. Qh5 {[%emt 0:00:48]} g6 {[%emt 0:00:12]} 12. Qd1 {[%emt 0:00:32]} Qa5 {[%emt 0:00:14]} 13. Nf3 {[%emt 0:11:34]} Rxf3 {[%emt 0:11:03]} 14. gxf3 {[%emt 0:02:01]} Qxc3+ {[%emt 0:01:27]} 15. Kf1 {[%emt 0:01:01]} c4 {[%emt 0:02:41]} 16. Bxe7 {[%emt 0:09:49]} cxd3 {[%emt 0:00:12]} 17. Kg2 {[%emt 0:13:27]} dxc2 {[%emt 0:16:02]} 18. Qc1 {[%emt 0:00:15]} Qxd4 {[%emt 0:02:38]} 19. Qxc2 {[%emt 0:01:57]} Nc6 {[%emt 0:01:41]} 20. Rad1 {[%emt 0:03:57]} Qf4 {[%emt 0:13:49]} 21. Qc5 {[%emt 0:02:38]} Bd7 {[%emt 0:12:03]} 22. Bd6 {[%emt 0:08:34]} b6 {[%emt 0:09:47]} 23. Qxd5 {[%emt 0:00:52]} exd5 {[%emt 0:13:24]} 24. Bxf4 {[%emt 0:00:07]} Be6 {[%emt 0:00:26]} 25. Rhe1 {[%emt 0:04:23]} Re8 {[%emt 0:02:21]} 26. Kg3 {[%emt 0:02:46]} Kf7 {[%emt 0:01:08]} 27. Be3 {[%emt 0:08:02]} Na5 {[%emt 0:01:20]} 28. Bd4 {[%emt 0:02:28]} Nc4 {[%emt 0:00:15]} 29. a4 {[%emt 0:01:53]} Re7 {[%emt 0:01:14]} 30. Bc3 {[%emt 0:02:38]} Rc7 {[%emt 0:02:53]} 31. a5 {[%emt 0:08:13]} Nxa5 {[%emt 0:00:32]} 32. Bxa5 {[%emt 0:00:07]} bxa5 {[%emt 0:00:05]} 33. Rc1 {[%emt 0:01:33]} Rd7 {[%emt 0:00:54]} 34. Ra1 {[%emt 0:01:41]} d4 {[%emt 0:01:05]} 35. Rxa5 {[%emt 0:00:03]} d3 {[%emt 0:00:17]} 36. Ra3 {[%emt 0:01:58]} d2 {[%emt 0:05:43]} 37. Rd1 {[%emt 0:00:03]} Bc4 {[%emt 0:00:13]} 0-1

[Event "Swiss Championship 2024"]
[Site "Flims"]
[Date "2024.07.21"]
[Round "9.4"]
[White "Baenziger, Fabian"]
[Black "Stijve, Theo"]
[Result "0-1"]
[ECO "D24"]
[WhiteElo "2410"]
[BlackElo "2328"]
[Annotator "TA"]
[PlyCount "62"]
[EventDate "2024.07.10"]
[EventType "tourn"]
[EventCountry "SUI"]
[SourceTitle "playchess.com"]
[Source "ChessBase"]
[SourceQuality "1"]
[TimeControl "40/5400+30:1800+30"]

{[%evp 9,62,10,40,43,48,49,47,38,52,38,47,42,35,39,37,30,41,30,37,0,0,-42,-43,-31,-43,-32,0,-38,-29,-27,-15,-38,-28,-49,-50,-43,-53,-18,-8,-26,0,-41,0,-265,-264,-470,-465,-445,-426,-450,-434,-434,-431,-576,-541]} 1. d4 {[%emt 0:00:04]} d5 {[%emt 0:00:08]} 2. c4 {[%emt 0:00:13]} e6 {[%emt 0:00:07]} 3. Nf3 {[%emt 0:00:15]} Nf6 {[%emt 0:00:08][%cal Bg8f6,Bf6d7,Bd7b6][%mdl 32]} 4. Nc3 {[%emt 0:00:30]} dxc4 {[%emt 0:01:02]} 5. e4 {[%emt 0:01:48][%cal Be2e4,Be4e5][%mdl 32]} b5 {[%emt 0:00:15]} 6. e5 {[%emt 0:01:13]} Nfd7 {[%emt 0:00:18]} 7. Nxb5 {[%emt 0:00:06][%cal Oc1g5]} Nb6 {[%emt 0:00:07]} 8. Be2 {[%emt 0:00:04] White is slightly better.} Nc6 {[%emt 0:00:27][%cal Bb8c6,Bc6b4,Bb4a2][%mdl 32]} 9. Be3 {[%emt 0:01:49]} Be7 {[%emt 0:02:58]} 10. O-O {[%emt 0:01:55]} Bb7 {[%emt 0:00:22]} 11. Nc3 {[%emt 0:00:05]} O-O {[%emt 0:01:03]} 12. Na4 {[%emt 0:04:42]} Ba6 {[%emt 0:02:30]} 13. Rc1 {[%emt 0:11:19]} Nb4 {[%emt 0:01:10]} 14. Nxb6 {[%emt 0:00:25]} axb6 {[%emt 0:01:55]} 15. Bxc4 {[%emt 0:00:49]} Nxa2 {[%emt 0:04:19]} 16. Rc2 {[%emt 0:00:19]} Nb4 {[%emt 0:02:04]} 17. Rc1 {[%emt 0:00:09]} Na2 {[%emt 0:04:23]} 18. Rc2 {[%emt 0:02:31]} Bb7 {[%emt 0:15:59]} 19. Qe2 {[%emt 0:05:01]} Ra7 {[%emt 0:09:00]} 20. Nd2 {[%emt 0:13:53]} Nb4 $36 {[%emt 0:03:43][%mdl 2048] Black has good play.} 21. Rcc1 {[%emt 0:00:05]} Nd5 {[%emt 0:03:16]} 22. Ne4 {[%emt 0:05:26]} Nxe3 {[%emt 0:10:37]} 23. Qxe3 {[%emt 0:01:18]} Ra4 {[%emt 0:01:29][%cal Ob6b5]} 24. Rfd1 {[%emt 0:05:28]} Qa8 {[%emt 0:04:13]} 25. b3 {[%emt 0:13:58]} Rxc4 {[%emt 0:05:02]} 26. bxc4 {[%emt 0:01:33][%mdl 8192] [#]} (26. Ra1 $1 $11 {and White is okay.} Rc2 27. Rxa8 Rxa8 28. h3) 26... Bxe4 $19 {[%emt 0:00:41]} 27. d5 $2 {[%emt 0:00:03]} (27. h3) 27... exd5 {[%emt 0:00:50] Black is clearly winning.} 28. cxd5 {[%emt 0:00:03]} Bxd5 {[%emt 0:00:58]} 29. Rxc7 {[%emt 0:00:04]} Bc5 {[%emt 0:01:05]} 30. Qg3 {[%emt 0:00:39]} Be6 {[%emt 0:01:56]} 31. Qh4 {[%emt 0:00:37]} Qb8 {[%emt 0:01:03] Weighted Error Value: White=0.39/Black=0.07 (flawless) .  Loses game:     	White=1     	---        Mistake:       	White=1     	---        Inaccurate:     	White=4     	Black=2      OK:         	White=7     	Black=16     Best:        	White=1     	Black=2} 0-1

[Event "Swiss Championship 2024"]
[Site "Flims"]
[Date "2024.07.21"]
[Round "9.5"]
[White "Fischer, Daniel"]
[Black "Peng, Li Min"]
[Result "1/2-1/2"]
[ECO "B15"]
[WhiteElo "2372"]
[BlackElo "2562"]
[Annotator "TA"]
[PlyCount "66"]
[EventDate "2024.07.10"]
[EventType "tourn"]
[EventCountry "SUI"]
[SourceTitle "playchess.com"]
[Source "ChessBase"]
[SourceQuality "1"]
[TimeControl "40/5400+30:1800+30"]

{[%evp 17,66,26,65,27,18,-9,34,0,19,0,57,55,60,62,106,79,114,108,182,166,169,59,62,44,31,12,12,10,17,9,8,0,0,0,0,0,0,0,0,0,0,0,0,0,0,0,0,0,0,0,0]} 1. e4 {[%emt 0:00:04]} c6 {[%emt 0:00:05]} 2. d4 {[%emt 0:00:06]} d5 {[%emt 0:00:07]} 3. Nc3 {[%emt 0:00:27]} dxe4 {[%emt 0:00:09]} 4. Nxe4 {[%emt 0:00:06]} Nf6 {[%emt 0:00:05]} 5. Nxf6+ {[%emt 0:00:08]} exf6 {[%emt 0:00:05]} 6. c3 {[%emt 0:00:38]} Bd6 {[%emt 0:00:07]} 7. Bd3 {[%emt 0:00:50]} O-O {[%emt 0:00:07]} 8. Qc2 {[%emt 0:00:51]} Re8+ {[%emt 0:00:07]} 9. Ne2 {[%emt 0:00:07]} g6 {[%emt 0:00:04]} 10. Be3 {[%emt 0:03:21]} f5 {[%emt 0:01:47]} 11. O-O-O {[%emt 0:01:46]} Be6 {[%emt 0:05:13][%cal Oe6d5]} 12. Kb1 {[%emt 0:03:27] White is slightly better.} Nd7 {[%emt 0:03:32]} 13. h4 {[%emt 0:05:37][%cal Bh2h4,Bh4h5][%mdl 32]} b5 {[%emt 0:08:37]} (13... Qa5 $11 14. c4 b5) 14. h5 $14 {[%emt 0:06:10] Threatens to win with hxg6.} Qf6 {[%emt 0:08:20]} 15. Nf4 {[%emt 0:08:41][%cal Od4d5] Hoping for d5!} Rab8 {[%emt 0:15:13]} 16. Nxe6 {[%emt 0:06:52]} Rxe6 {[%emt 0:00:33]} 17. hxg6 {[%emt 0:00:47]} hxg6 {[%emt 0:00:13] [#]} (17... fxg6 $16 {was called for.} 18. c4 Qf7) 18. Bc1 $1 $18 {[%emt 0:03:52]} Nb6 {[%emt 0:04:49][%cal Bd7b6,Bb6d5,Bd5c3,Bc3e4,Be4c5,Bc5b3,Bb3d2][%mdl 32] [#]} 19. Qd2 {[%emt 0:14:32]} ({Better is} 19. f4 $1 $18 Nc4 20. Qf2) 19... f4 $14 {[%emt 0:00:15]} 20. g3 {[%emt 0:01:30]} Nd5 {[%emt 0:03:15] Strongly threatening ...b4.} 21. Rdg1 {[%emt 0:05:14]} b4 {[%emt 0:01:14] The position is equal.} 22. c4 {[%emt 0:00:56]} Nc3+ {[%emt 0:00:05]} 23. Ka1 $1 {[%emt 0:00:18][%cal Rg3f4]} Ne4 $1 {[%emt 0:01:08]} 24. Qc2 {[%emt 0:04:45]} (24. Bxe4 {simplifies} Rxe4 25. f3 Rxd4 26. Qh2) 24... Qxd4 {[%emt 0:00:11]} 25. gxf4 {[%emt 0:01:23] And now Be3 would win.} b3 {[%emt 0:13:42]} ({Resist} 25... Nxf2 26. f5 Nxh1 (26... Qxd3 $2 27. Qxf2 Qxc4 28. fxe6 $18) 27. Rxh1 gxf5 (27... b3 28. axb3 gxf5 29. Bxf5 $11) 28. Bxf5 $15) (25... Nxf2 $5 26. f5 $8 Nxh1 (26... Qxd3 $2 27. Qxf2 Qxc4 28. fxe6 $18) 27. Rxh1 gxf5 (27... b3 28. axb3 gxf5 29. Bxf5 $11) 28. Bxf5 Rf6 $15) 26. axb3 {[%emt 0:00:51] Be3 would now be deadly.} Nc5 {[%emt 0:00:05]} 27. Bxg6 {[%emt 0:09:43]} Nxb3+ {[%emt 0:01:06]} (27... fxg6 $2 {too greedy.} 28. Rxg6+ Rxg6 29. Qxg6+ Kf8 30. Be3 (30. Rh8+ Qxh8 31. Qxd6+ Kf7 $18) 30... Nxb3+ 31. Ka2 $18) 28. Kb1 {[%emt 0:00:24]} Rxg6 {[%emt 0:00:53]} 29. Rxg6+ {[%emt 0:00:08]} fxg6 {[%emt 0:00:04]} 30. Qxg6+ {[%emt 0:00:12]} Kf8 {[%emt 0:00:02][%cal Ob3c1] ...Nxc1! is the strong threat.} 31. Rh7 {[%emt 0:07:56][%csl Gh7][%cal Rg6f7]} Nd2+ {[%emt 0:00:09]} 32. Ka1 {[%emt 0:00:05][%csl Gh7][%cal Rg6f7] Dancing on a razor blade.} Nb3+ {[%emt 0:00:02]} 33. Kb1 {[%emt 0:00:05][%csl Gh7][%cal Rg6f7]} Nd2+ {[%emt 0:00:02] Weighted Error Value: White=0.16 (very precise) /Black=0.17 (very precise) .  Mistake:       	White=1     	Black=2      Inaccurate:     	White=2     	Black=3      OK:         	White=8     	Black=9      Best:        	White=4     	Black=5      Strong:       	White=1     	Black=1} 1/2-1/2

[Event "Swiss Championship 2024"]
[Site "Flims"]
[Date "2024.07.21"]
[Round "10.1"]
[White "Stijve, Theo"]
[Black "Bogner, Sebastian"]
[Result "0-1"]
[ECO "B62"]
[WhiteElo "2328"]
[BlackElo "2547"]
[Annotator "TA"]
[PlyCount "84"]
[EventDate "2024.07.10"]
[EventType "tourn"]
[EventCountry "SUI"]
[SourceTitle "playchess.com"]
[Source "ChessBase"]
[SourceQuality "1"]
[TimeControl "40/5400+30:1800+30"]

{[%evp 16,84,31,29,47,40,37,40,60,41,38,40,57,14,35,47,40,33,52,30,59,0,0,0,0,0,0,0,95,-47,88,-25,-18,-22,-25,-14,-16,-27,0,-76,-71,-70,-37,-54,-52,-75,-52,-81,-65,-65,-57,-152,-70,-93,-82,-257,-257,-303,-302,-290,-174,-1635,-1660,-1883,-1943,-4627,-1352,-5110,-5106,-5125,-5122]} 1. e4 {[%emt 1:20:42]} c5 {[%emt 1:20:43]} 2. Nf3 {[%emt 0:00:23]} d6 {[%emt 0:00:21]} 3. d4 {[%emt 0:00:22]} cxd4 {[%emt 0:00:22]} 4. Nxd4 {[%emt 0:00:21]} Nf6 {[%emt 0:00:22]} 5. Nc3 {[%emt 0:00:22]} Nc6 {[%emt 0:00:37]} 6. Bg5 {[%emt 0:00:30]} e6 {[%emt 0:00:21]} 7. Qd3 {[%emt 0:00:49]} Bd7 {[%emt 0:00:26]} 8. O-O-O {[%emt 0:01:14]} a6 {[%emt 0:00:25]} 9. Be2 {[%emt 0:00:59]} Be7 {[%emt 0:01:59]} 10. Qg3 {[%emt 0:01:23]} Nxd4 {[%emt 0:03:05]} 11. Rxd4 {[%emt 0:00:30]} Qc7 {[%emt 0:00:29] Weiß steht etwas besser.} 12. Rhd1 {[%emt 0:01:06] Droht e5 und aus.} (12. Bf4 e5 13. Rc4 (13. Qxg7 Rf8 $17) 13... Qa5 $17 (13... exf4 $2 14. Qxg7 Rg8 15. Qxg8+ Nxg8 16. Rxc7 $18)) 12... Bc6 $1 {[%emt 0:00:49]} 13. f4 {[%emt 0:02:27]} h6 {[%emt 0:02:17]} 14. Bh4 {[%emt 0:01:11][%cal Oe4e5]} g5 {[%emt 0:01:15]} 15. fxg5 {[%emt 0:00:28]} Rg8 {[%emt 0:00:27]} 16. Qe3 {[%emt 0:01:54]} hxg5 {[%emt 0:00:22]} 17. Bg3 {[%emt 0:00:32][%cal Rg3d6]} (17. Bxg5 $2 {geht unter.} Ng4 18. Qg3 (18. Bxg4 $2 {ist das falsche Schlagen.} Bxg5 $19) 18... Bxg5+ $19) 17... e5 $1 {[%emt 0:01:14]} 18. R4d3 {[%emt 0:01:38]} (18. R4d2 $14) 18... Rc8 $11 {[%emt 0:00:23][%cal Oc6e4]} 19. R3d2 {[%emt 0:01:26]} Bd7 {[%emt 0:00:21]} 20. Kb1 {[%emt 0:00:38]} Qc5 {[%emt 0:01:08]} 21. Qd3 {[%emt 0:00:46]} Be6 {[%emt 0:00:32]} (21... Qa5 $11 {hält das Gleichgewicht.}) 22. Rf1 {[%emt 0:00:36]} (22. Nd5 $1 $16) 22... b5 {[%emt 0:00:41] [#]} (22... Qa5 $1 $15 23. Nd5 Nxe4) 23. a3 {[%emt 0:01:00]} (23. Nd5 $1 $16 {[%cal Rd5f6]} Bxd5 24. exd5) 23... Bc4 $36 {[%emt 0:00:59][%mdl 2048] Schwarz drückt.} 24. Qf3 {[%emt 0:00:34]} g4 $1 {[%emt 0:00:23]} 25. Qf2 {[%emt 0:00:38]} Qxf2 {[%emt 0:00:28]} 26. Bxf2 {[%emt 0:00:34]} Be6 {[%emt 0:00:25][%cal Oc8c3] Droht stark ...Rxc3!} 27. Bh4 {[%emt 0:00:38] [#]} (27. Bd3 $11 {bleibt in der Remisbreite.}) 27... Rxc3 $1 $17 {[%emt 0:01:07]} 28. Bxf6 {[%emt 0:00:26]} Rc6 {[%emt 0:00:46]} 29. Bxe7 {[%emt 0:00:36]} Kxe7 {[%emt 0:00:21]} 30. g3 {[%emt 0:00:32]} Rh8 {[%emt 0:00:25]} 31. Bd1 {[%emt 0:00:24]} Rh6 {[%emt 0:00:28]} 32. c3 {[%emt 0:00:27]} Rh8 {[%emt 0:00:49]} 33. a4 {[%emt 0:00:25] [#]} (33. Re1 $15) 33... Rb8 {[%emt 0:00:31]} (33... b4 $1 $17 {...Rc4 wäre nun fies.} 34. cxb4 Rc4) 34. axb5 {[%emt 0:00:59]} axb5 {[%emt 0:00:21]} ({Und nicht} 34... Rxb5 35. Ba4 $16) 35. Be2 $2 {[%emt 0:00:16] Ein Fehler, der zur Niederlage führt.} (35. Rdf2 $17 {ist wohl besser.}) 35... b4 $19 {[%emt 0:00:25]} 36. cxb4 {[%emt 0:00:29]} Rxb4 {[%emt 0:00:21]} 37. Bd3 {[%emt 0:00:25]} Rd4 {[%emt 0:00:41] Weiss muss nun ...Bc4 beachten.} 38. Rc1 $2 {[%emt 0:00:28] [#]} (38. Rc2 Rc8 39. Rxc8 Bxc8 40. Bc2) 38... Ba2+ $1 {[%emt 0:00:23][%mdl 512] Schwarz steht klar auf Gewinn.} 39. Kxa2 {[%emt 0:00:29]} (39. Ka1 Rxc1+) 39... Rxc1 {[%emt 0:00:22]} 40. Kb3 {[%emt 0:00:41] [#]} f5 $1 {[%emt 0:00:31]} 41. exf5 {[%emt 0:30:27]} e4 {[%emt 0:30:22]} 42. f6+ {[%emt 0:00:21]} Kf8 {[%emt 0:00:29] Gewichteter Fehlerwert: Weiß=0.69/Schwarz=0.21 (präzise) .  Verlustzug:     	Weiß=1     	---        Fehler:       	Weiß=6     	Schwarz=3     Ungenau:       	Weiß=2     	Schwarz=3     OK:         	Weiß=8     	Schwarz=8     Bester:       	---       	Schwarz=2     Stark:        	---       	Schwarz=3     Brilliant:      	---       	Schwarz=2} 0-1

[Event "Swiss Championship 2024"]
[Site "Flims"]
[Date "2024.07.21"]
[Round "11.1"]
[White "Bogner, Sebastian"]
[Black "Stijve, Theo"]
[Result "1-0"]
[ECO "E32"]
[WhiteElo "2547"]
[BlackElo "2328"]
[Annotator "TA"]
[PlyCount "43"]
[EventDate "2024.07.10"]
[EventType "tourn"]
[EventCountry "SUI"]
[SourceTitle "playchess.com"]
[Source "ChessBase"]
[SourceQuality "1"]
[TimeControl "600"]

{[%evp 9,42,20,21,20,29,36,32,39,131,118,340,334,329,333,359,362,372,368,368,368,412,410,437,429,433,397,573,539,547,542,677,578,29998,29999,29999]} 1. d4 {[%emt 0:00:00]} Nf6 {[%emt 0:00:00]} 2. c4 {[%emt 0:00:00]} e6 {[%emt 0:00:00]} 3. Nc3 {[%emt 0:00:00]} Bb4 {[%emt 0:00:00]} 4. Qc2 {[%emt 0:00:00]} d6 {[%emt 0:00:00]} 5. e3 {[%emt 0:00:00]} O-O {[%emt 0:00:24]} 6. Bd3 {[%emt 0:00:00]} e5 {[%emt 0:00:00]} 7. Nge2 {[%emt 0:00:00]} Re8 {[%emt 0:00:43]} 8. O-O {[%emt 0:00:02] White is slightly better.} Nc6 {[%emt 0:00:50]} (8... Bxc3 $14 9. Nxc3 exd4 10. exd4 Nc6) 9. Nd5 $16 {[%emt 0:01:17] [#] aiming for a3.} h5 $2 {[%emt 0:00:41]} (9... exd4 $16 {might work better.} 10. exd4 (10. Nxd4 Nxd4 11. Nxf6+ Qxf6 $11) 10... Nxd5) 10. a3 $18 {[%emt 0:00:58]} Ba5 {[%emt 0:02:15]} 11. b4 {[%emt 0:00:15]} Bb6 {[%emt 0:00:43]} 12. Nxf6+ {[%emt 0:00:01]} Qxf6 {[%emt 0:00:00]} 13. c5 {[%emt 0:00:00]} dxc5 {[%emt 0:00:37]} 14. dxc5 {[%emt 0:00:00]} (14. bxc5 Ba5 $18) 14... e4 {[%emt 0:00:26]} 15. Bc4 {[%emt 0:00:00]} Qg5 {[%emt 0:02:00]} ({But not} 15... Qxa1 16. Bb2 $18 (16. cxb6 Qf6 $14) (16. cxb6 Qf6 $14)) 16. Bb2 {[%emt 0:00:00]} h4 {[%emt 0:00:23]} 17. Nf4 {[%emt 0:00:56]} Ne7 {[%emt 0:00:33]} (17... Bxc5 $142 18. bxc5 Ne5) 18. Qxe4 {[%emt 0:01:17]} Bf5 {[%emt 0:00:05]} 19. Qf3 {[%emt 0:00:12]} Ng6 {[%emt 0:00:06]} 20. Nh3 {[%emt 0:00:37]} Bxh3 {[%emt 0:00:00]} 21. Qxf7+ {[%emt 0:00:00]} Kh7 {[%emt 0:00:00]} 22. Qxg7# {[%emt 0:04:25] Black got outplayed after the opening.   Weighted Error Value: White=0.13 (very precise) /Black=0.74.  Loses game:     	---       	Black=1      Mistake:       	---       	Black=2      Inaccurate:     	---       	Black=1      OK:         	White=8     	Black=3      Best:        	White=2     	---} 1-0